Cogmind - Beta 10.2 @@@ ROGUE MODE // 2021.04.24 @ 19:18:11 Player: ChromeKnight Result: Self-destructed Performance ------------- Evolutions (4) 2000 Regions Visited (6) 1200 Robots Destroyed (39) 195 Value Destroyed (795) 795 Prototype IDs (7) 140 Alien Tech Used (0) 0 Bonus (71) 71 TOTAL SCORE: 4401 Bonus ------- High Alert Combat Kills 31 Follower Combat Kills 40 Cogmind --------- Core Integrity 578/850 Matter 238/300 Energy 37/100 System Corruption 1% Temperature Cool (0) Movement Flying (105) Ox1 Location -6/Factory Parts ------- > --- POWER (2) -------- (None) > --- PROPULSION (4) --- Improved Flight Unit > --- UTILITY (7) ------ Improved Cryofiber Web Medium Storage Unit Weight Redist. System Weight Redist. System Spectral Analyzer Experimental Signal Interpreter Experimental Targeting Computer > --- WEAPON (2) ------- Improved Proton Missile Launcher Katana > --- INVENTORY (8) ---- Experimental Signal Interpreter Experimental Signal Interpreter Experimental Signal Interpreter Hacking Suite Improved Proton Missile Launcher Improved Proton Missile Launcher Peak State ------------ > --- POWER ------------ Light Fission Core Light Fission Core > --- PROPULSION ------- Gravmag Array Improved Flight Unit Improved Flight Unit > --- UTILITY ---------- Improved Cryofiber Web Medium Storage Unit Weight Redist. System Weight Redist. System Spectral Analyzer Experimental Signal Interpreter Experimental Targeting Computer > --- WEAPON ----------- Guided EMP Blaster > --- INVENTORY -------- Experimental Signal Interpreter Experimental Signal Interpreter Experimental Signal Interpreter Lightning Gun Improved Proton Missile Launcher Improved Proton Missile Launcher Improved Proton Missile Launcher Scythe [Rating: 73] Favorites ----------- Power Deuterium Engine Engine Deuterium Engine Power Core Light Fission Core Propulsion Aluminum Leg Treads Light Treads Leg Aluminum Leg Hover Unit Gravmag Array Flight Unit Improved Flight Unit Utility Large Storage Unit Device Experimental Sensor Array Storage Large Storage Unit Processor Spectral Analyzer Hackware Experimental Hacking Suite Protection Light Armor Plating Weapon Scythe Energy Gun EM Pulse Gun Ballistic Gun Heavy Assault Rifle Launcher Guided EMP Blaster Slashing Weapon Scythe Piercing Weapon CR-A16's Pointy Stick Build | -11 -10 -9 -9 -7 -6 -6 ------- Run | Scr Mat Mat Min Zio Pro Fac Slots Evolved 8 | . . 2 . . . 6 Power 1 | . . . . . . 1 Propulsion 2 | . . . . . . 2 Utility 5 | . . 2 . . . 3 Weapon . | . . . . . . . Parts Attached 61 | 6 1 26 1 9 4 14 Power 12 | 1 . 6 . 1 1 3 Engine 8 | 1 . 6 . 1 . . Core 4 | . . . . . 1 3 Reactor . | . . . . . . . Propulsion 16 | 2 . 9 . 2 1 2 Treads 1 | . . 1 . . . . Leg 6 | 2 . 4 . . . . Wheel . | . . . . . . . Hover 1 | . . . . . . 1 Flight 8 | . . 4 . 2 1 1 Utility 15 | 1 1 4 1 3 1 4 Device 5 | . . 1 1 . . 3 Storage 3 | 1 1 . . 1 . . Processor 3 | . . . . 1 1 1 Hackware 1 | . . . . 1 . . Protection 3 | . . 3 . . . . Artifact . | . . . . . . . Weapon 18 | 2 . 7 . 3 1 5 Energy Gun 2 | 2 . . . . . . Energy Cannon . | . . . . . . . Ballistic Gun 3 | . . 3 . . . . Ballistic Cannon . | . . . . . . . Launcher 3 | . . . . . . 3 Special Weapon . | . . . . . . . Impact Weapon . | . . . . . . . Slashing Weapon 9 | . . 4 . 2 1 2 Piercing Weapon 1 | . . . . 1 . . Special Melee Weapon . | . . . . . . . Unidentified Prototypes 7 | . . 1 1 2 1 2 Parts Lost 17 | . . 5 2 . 5 5 Power 3 | . . . . . 1 2 Propulsion 6 | . . 3 . . 1 2 Utility 6 | . . 2 2 . 2 . Weapon 2 | . . . . . 1 1 Highest Loss Streak 5 | . . 2 2 . 4 5 Average Slot Usage (%) 83 | . 85 67 83 96 86 81 Engine 7 | . 14 5 11 11 4 . Core 1 | . . . . . 2 11 Leg 10 | . 28 13 22 4 . . Flight 10 | . . 5 . 17 21 15 Device 7 | . . 3 8 11 7 17 Storage 10 | . 14 11 11 11 11 6 Processor 5 | . . . . 9 11 20 Hackware 3 | . . . . 9 9 . Protection 3 | . . 5 8 . . . Energy Gun 3 | . 28 3 . . . . Slashing Weapon 16 | . . 16 22 21 18 5 Naked Turns . | . . . . . . . Heaviest Build 36 | 11 23 35 36 30 22 33 Greatest Support 40 | 20 20 20 20 20 12 40 Greatest Overweight (x) 9 | . 1 9 1 1 2 1 Average Overweight (x) . | . . 1 1 1 . . Largest Inventory Capacity 12 | 6 12 10 10 10 8 8 Average Capacity 8 | 5 9 10 10 8 8 8 Most Carried 10 | 1 3 10 10 10 8 8 Average Carried 7 | . 2 7 10 8 7 6 Final Capacity 10 | 6 10 10 10 8 8 8 Final Carried 10 | 1 3 10 10 8 7 6 Class Distribution -------------------- 77% | Mutant 12% | Sprinter 9% | Scavenger-Mutant Dominant Class ---------------- Mutant | -10/Materials Mutant | -9/Materials Mutant | -9/Mines Mutant | -7/Zion Mutant | -6/Proximity Caves Sprinter | -6/Factory Resources | -11 -10 -9 -9 -7 -6 -6 ----------- Run | Scr Mat Mat Min Zio Pro Fac Matter Collected 1213 | 260 80 520 80 60 70 143 Remotely . | . . . . . . . Salvage Created 1127 | . 80 718 132 . 54 143 Parts 87 | . 7 54 13 . 4 9 Haulers Intercepted 3 | . . 3 . . . . Recyclers Shooed . | . . . . . . . Parts Field Recycled . | . . . . . . . Retrieved Matter . | . . . . . . . Parts Self-Destructed 8 | . . . . . 8 . Prevented . | . . . . . . . Kills | -11 -10 -9 -9 -7 -6 -6 ------- Run | Scr Mat Mat Min Zio Pro Fac Combat Hostiles Destroyed 29 | . 3 16 6 . 2 2 Melee 22 | . . 12 6 . 2 2 Guns 6 | . 2 4 . . . . AOE 1 | . 1 . . . . . Classes Destroyed 10 | . 2 5 1 . . 2 Worker 1 | . . . 1 . . . Builder 2 | . . 1 1 . . . Hauler 3 | . . 3 . . . . Operator 2 | . . 1 . . . 1 Watcher 2 | . 1 . . . . 1 Swarmer 19 | . 3 8 6 . 2 . Grunt 3 | . . 3 . . . . Sentry 5 | . . 5 . . . . Hunter 1 | . . . . . . 1 Programmer 1 | . . . . . . 1 Best Kill Streak 5 | . 2 5 2 . 2 2 Combat Bots Only 5 | . 2 5 2 . 2 2 Max Kills in Single Turn 1 | . 1 1 1 . 1 1 Gunslinging . | . . . . . . . Exploded 1 | . 1 . . . . . Melee 1 | . . 1 1 . 1 1 Uniques/NPCs Destroyed . | . . . . . . . Combat | -11 -10 -9 -9 -7 -6 -6 -------- Run | Scr Mat Mat Min Zio Pro Fac Damage Taken 2496 | . 65 931 341 . 401 758 Core 674 | . 7 188 54 . 153 272 Absorbed by Shields . | . . . . . . . Core Remaining (%) 66 | 100 97 . . . 1 . Volleys Fired 29 | . 9 14 . . . 6 Largest 2 | . 2 2 . . . 1 Hottest 80 | . 80 80 . . . 50 Shots Fired 52 | . 18 28 . . . 6 Gun 46 | . 18 28 . . . . Cannon . | . . . . . . . Launcher 6 | . . . . . . 6 Special . | . . . . . . . Kinetic 5 | . . 5 . . . . Thermal . | . . . . . . . Explosive . | . . . . . . . Electromagnetic 47 | . 18 23 . . . 6 Robot Hit Streak 5 | . 3 3 . . . 5 Robot Miss Streak 3 | . 2 3 . . . . Penetration Max . | . . . . . . . Secondary Targets 1 | . . 1 . . . . Max Gunslinging Chain 1 | . . 1 . . . . Shots Hit Robots 108 | . 11 49 20 . 3 25 Core Hits 46 | . 4 22 7 . 2 11 Critical Hits 4 | . . 2 . . 2 . Critical Kills 3 | . . 2 . . 1 . Critical Parts Destroyed 1 | . . . . . 1 . Melee Attacks 121 | . . 48 35 . 11 27 Impact . | . . . . . . . Slashing 121 | . . 48 35 . 11 27 Piercing . | . . . . . . . Sneak Attacks 14 | . . 9 3 . . 2 Combat Hostiles . | . . . . . . . Follow-up Attacks 11 | . . 7 2 . . 2 Damage Inflicted 4037 | . 155 1906 850 . 91 1035 Guns 329 | . 119 210 . . . . Cannons . | . . . . . . . Explosions 159 | . 36 . . . . 123 Melee 3549 | . . 1696 850 . 91 912 Ramming . | . . . . . . . Kinetic 48 | . . 48 . . . . Thermal 36 | . 36 . . . . . Explosive . | . . . . . . . Electromagnetic 404 | . 119 162 . . . 123 Impact . | . . . . . . . Slashing 3549 | . . 1696 850 . 91 912 Piercing . | . . . . . . . Highest Corruption 1 | . . . . . . 1 Average Corruption 1 | . . . . . . 1 Corruption Purged . | . . . . . . . Overload Shots . | . . . . . . . Overflow Damage 510 | . . 214 162 . . 134 Projectiles . | . . . . . . . Explosions . | . . . . . . . Melee 510 | . . 214 162 . . 134 Knockbacks . | . . . . . . . Impact . | . . . . . . . Kinetic . | . . . . . . . Secondary . | . . . . . . . Self-Inflicted Damage . | . . . . . . . Shots . | . . . . . . . Rammed . | . . . . . . . Targets Rammed . | . . . . . . . Kicked . | . . . . . . . Crushed . | . . . . . . . Highest Temperature 90 | . 90 54 . . . 12 Average Temperature 27 | . 37 19 . . . 9 Received Heat Transfer 315 | . . 222 . . 30 63 Siege Activations . | . . . . . . . Robots Corrupted . | . . . . . . . Combat Hostiles . | . . . . . . . Parts Fried 2 | . 1 1 . . . . Impact Corruptions . | . . . . . . . Robots Melted . | . . . . . . . Combat Hostiles . | . . . . . . . Parts Melted . | . . . . . . . Heat Transferred 50 | . 50 . . . . . Parts Sabotaged . | . . . . . . . Parts Stolen . | . . . . . . . Parts Stripped . | . . . . . . . Power Chain Reactions 1 | . 1 . . . . . Missiles Intercepted . | . . . . . . . Alert | -11 -10 -9 -9 -7 -6 -6 ------- Run | Scr Mat Mat Min Zio Pro Fac Peak Influence 479 | . 107 326 296 . . 479 Initial 126 | . . 44 126 . . 84 Average 166 | . 78 184 172 . . 235 Maximum Alert Level 2 | . . 1 1 . . 2 Low Security (%) 61 | 100 100 53 54 . . 51 Level 1 35 | . . 46 45 . . 29 Level 2 2 | . . . . . . 18 Level 3 . | . . . . . . . Level 4 . | . . . . . . . Level 5 . | . . . . . . . High Security . | . . . . . . . Max Security . | . . . . . . . Squads Dispatched 8 | . . 3 . . 1 4 Investigation 1 | . . 1 . . . . Extermination 1 | . . . . . . 1 Reinforcement 5 | . . 2 . . . 3 Assault 1 | . . . . . 1 . Garrison . | . . . . . . . Intercept . | . . . . . . . Construction Impeded . | . . . . . . . Haulers Reinforced 1 | . . . . . . 1 Stealth | -11 -10 -9 -9 -7 -6 -6 --------- Run | Scr Mat Mat Min Zio Pro Fac Distress Signals 4 | . . 4 . . . . Communications Jammed . | . . . . . . . Distress Signals . | . . . . . . . Times Spotted 87 | . 5 28 9 . 25 20 Peak Tracking Total 10 | . 3 7 4 . 10 5 Tactical Retreats 16 | . 1 2 1 . 6 6 Traps | -11 -10 -9 -9 -7 -6 -6 ------- Run | Scr Mat Mat Min Zio Pro Fac Traps Triggered 1 | . . 1 . . . . Indirectly . | . . . . . . . Trap Hack Attempts . | . . . . . . . Triggered . | . . . . . . . Disarmed . | . . . . . . . Reprogrammed . | . . . . . . . Reused . | . . . . . . . Traps Extracted . | . . . . . . . Installed . | . . . . . . . Triggered . | . . . . . . . Machines | -11 -10 -9 -9 -7 -6 -6 ---------- Run | Scr Mat Mat Min Zio Pro Fac Machines Disabled 2 | . 1 1 . . . . Max in Single Turn 1 | . 1 1 . . . . Machines Sabotaged . | . . . . . . . Garrisons Compromised . | . . . . . . . Overloaded Fab Kills . | . . . . . . . Fab Network Shutdowns . | . . . . . . . Hacking | -11 -10 -9 -9 -7 -6 -6 --------- Run | Scr Mat Mat Min Zio Pro Fac Machines Accessed 5 | . . 2 . 1 . 2 Terminals 4 | . . 2 . . . 2 Fabricators . | . . . . . . . Repair Stations . | . . . . . . . Recycling Units . | . . . . . . . Scanalyzers . | . . . . . . . Garrison Access . | . . . . . . . Total Hacks 14 | . . 6 . 2 . 6 Successful 6 | . . 3 . 2 . 1 Failed 8 | . . 3 . . . 5 Catastrophic 1 | . . . . . . 1 Database Lockouts . | . . . . . . . Manual 7 | . . 7 . . . . Terminals 12 | . . 6 . . . 6 Fabricators . | . . . . . . . Repair Stations . | . . . . . . . Recycling Units . | . . . . . . . Scanalyzers . | . . . . . . . Garrison Access . | . . . . . . . Terminal Hacks 6 | . . 3 . 2 . 1 Part Schematic 2 | . . . . 2 . . Robot Analysis 3 | . . 2 . . . 1 Branch Access Points 1 | . . 1 . . . . Fabricator Hacks . | . . . . . . . Repair Station Hacks . | . . . . . . . Recycling Unit Hacks . | . . . . . . . Scanalyzer . | . . . . . . . Garrison Access Hacks . | . . . . . . . Unauthorized Hacks . | . . . . . . . Terminals . | . . . . . . . Fabricators . | . . . . . . . Repair Stations . | . . . . . . . Recycling Units . | . . . . . . . Scanalyzers . | . . . . . . . Garrison Access . | . . . . . . . Data Cores Recovered . | . . . . . . . Used . | . . . . . . . Hacking Detections 4 | . . 2 . . . 2 Full Trace Events . | . . . . . . . Feedback Events . | . . . . . . . Feedback Blocked . | . . . . . . . Robot Schematics Acquired . | . . . . . . . Robots Built . | . . . . . . . Matter . | . . . . . . . Time . | . . . . . . . Total Robot Build Rating . | . . . . . . . Part Schematics Acquired 2 | . . . . 2 . . Parts Built . | . . . . . . . Matter . | . . . . . . . Time . | . . . . . . . Total Part Build Rating . | . . . . . . . Parts Repaired . | . . . . . . . Time . | . . . . . . . Parts Recycled . | . . . . . . . Recycled Matter . | . . . . . . . Retrieved Matter . | . . . . . . . Retrieved Components . | . . . . . . . Parts Scanalyzed . | . . . . . . . Part Schematics Acquired . | . . . . . . . Parts Damaged . | . . . . . . . Bothacking | -11 -10 -9 -9 -7 -6 -6 ------------ Run | Scr Mat Mat Min Zio Pro Fac Used RIF Installer . | . . . . . . . Robots Hacked . | . . . . . . . Non-combat . | . . . . . . . Combat . | . . . . . . . Robot Hacks Applied . | . . . . . . . Relay Couplers Released . | . . . . . . . Robots Rewired 1 | . . . . . 1 . Allies Hacked . | . . . . . . . Hacks Repelled . | . . . . . . . Allies | -11 -10 -9 -9 -7 -6 -6 -------- Run | Scr Mat Mat Min Zio Pro Fac Total Allies 4 | . . . . 3 1 . Largest Group 3 | . . . . 3 3 . Highest-Rated Group 90 | . . . . 90 90 . Highest-Rated Ally 31 | . . . . 31 31 . Total Orders . | . . . . . . . Ally Attacks 18 | . . . . . 18 . Total Damage 208 | . . . . . 208 . Kills 3 | . . . . . 3 . Allies Corrupted . | . . . . . . . Allies Melted . | . . . . . . . Intel | -11 -10 -9 -9 -7 -6 -6 ------- Run | Scr Mat Mat Min Zio Pro Fac Robot Analysis Total 3 | . . 2 . . . 1 Derelict Logs Recovered 5 | . . . 2 2 1 . Drone Launches . | . . . . . . . Drone Recoveries . | . . . . . . . Exploration | -11 -10 -9 -9 -7 -6 -6 ------------- Run | Scr Mat Mat Min Zio Pro Fac Turns Passed 3543 | 66 321 775 702 714 640 325 Spaces Moved 2562 | 49 196 314 412 625 537 429 Core 7 | 3 . 4 . . . . Treads 37 | . . 37 . . . . Legs 955 | 46 196 222 412 79 . . Wheels . | . . . . . . . Hover 103 | . . . . . . 103 Flight 1460 | . . 51 . 546 537 326 Fastest Speed 30 | 50 120 120 150 102 32 30 Average Speed 103 | 115 144 166 150 108 59 38 Slowest Speed 600 | 120 150 600 150 150 175 105 Overloaded Moves . | . . . . . . . Propulsion Burnouts . | . . . . . . . Robots Hopped 2 | . . . . . . 2 Cave-ins Triggered . | . . . . . . . Exploration Rate (%) 47 | 3 32 30 85 79 82 19 Regions Visited 6 Branch Regions 3 Pre-discovered Areas 3 | . . . 2 1 . . Known Exits Taken 2 | . . 1 . . 1 . Unknown Exits Taken 4 | 1 1 . 1 1 . . Scrap Searched 7 | . . . 2 2 3 . Spaces Dug 3 | . . 1 . . 2 . Terrain Destroyed 9 | . 6 1 . . 2 . Melee 3 | . . 1 . . 2 . Projectile . | . . . . . . . AOE 6 | . 6 . . . . . Terrain Rammed . | . . . . . . . Walls Destroyed . | . . . . . . . Machines Disabled . | . . . . . . . Actions | -11 -10 -9 -9 -7 -6 -6 --------- Run | Scr Mat Mat Min Zio Pro Fac Total 3240 | 55 216 477 446 665 841 540 Wait 423 | . 8 56 1 15 286 57 Move 2552 | 48 195 313 411 624 536 425 Hop 2 | . . . . . . 2 Pick Up 25 | 1 2 11 . 6 1 4 Fast Attach 40 | 6 1 18 1 5 1 8 Attach 13 | . . 3 . 2 2 6 Detach 3 | . . . . . . 3 Swap 8 | . . 5 . 2 1 . Drop 37 | . 1 19 . 11 2 4 Fire 29 | . 9 14 . . . 6 Melee 105 | . . 38 33 . 9 25 Ram . | . . . . . . . Kick . | . . . . . . . Crush . | . . . . . . . Escape Stasis . | . . . . . . . Rewire 3 | . . . . . 3 . Trap . | . . . . . . . Miscellaneous . | . . . . . . . Route ------- -11/Scrapyard -10/Materials -9/Materials (discovered 2 exits: *Min x2) -9/Mines (discovered 3 exits: *Mat x2 / *Zio) -7/Zion -6/Proximity Caves -6/Factory (discovered 3 exits: *Fac x3) History --------- Turn | Location | Event 38 | -11/Scrapyard | Discovered new exit (range 14) 67 | -11/Scrapyard | Entered Materials 304 | -10/Materials | Build established: Mutant 351 | -10/Materials | Discovered new exit (range 15) 388 | -10/Materials | Entered another Materials area 388 | -9/Materials | Evolved 2 slots: Utility x2 425 | -9/Materials | Identified exit to Mines 1163 | -9/Materials | Entered Mines 1164 | -9/Mines | Learned location of Storage (-7) 1208 | -9/Mines | Core integrity fell below 50% 1322 | -9/Mines | Found a damaged Exp. Sensor Array with a note attached 1328 | -9/Mines | Found Prototype Device 1328 | -9/Mines | Identified Exp. Sensor Array 1387 | -9/Mines | Build established: Scavenger-Mutant 1478 | -9/Mines | Identified exit to Materials 1498 | -9/Mines | Discovered exit to Materials (range 15) 1536 | -9/Mines | Learned location of Zion (-7) 1574 | -9/Mines | A Derelict revealed a hidden shortcut to a safe place 1729 | -9/Mines | Build established: Mutant 1865 | -9/Mines | Entered Zion 1970 | -7/Zion | Found Prototype Hackware 1970 | -7/Zion | Identified Exp. Hacking Suite 1973 | -7/Zion | Found Prototype Processor 1973 | -7/Zion | Identified Spectral Analyzer 1998 | -7/Zion | Found Prototype Processor 2000 | -7/Zion | Found Prototype Processor 2002 | -7/Zion | Found Prototype Processor 2004 | -7/Zion | Found Prototype Processor 2007 | -7/Zion | Found Prototype Processor 2070 | -7/Zion | Gained Derelict followers 2098 | -7/Zion | Learned location of Data Miner (-6) 2112 | -7/Zion | Learned 8 Factory zone layouts 2189 | -7/Zion | Found CR-A16's Pointy Stick 2459 | -7/Zion | Given the Hacking Drone Bay 2555 | -7/Zion | Discovered new exit (range 10) 2579 | -7/Zion | Entered Proximity Caves 2579 | -6/Proximity Caves | Accompanied by 3 allies 2900 | -6/Proximity Caves | Spotted B-75 Beast 2983 | -6/Proximity Caves | Core integrity fell below 20% 3027 | -6/Proximity Caves | Lost 4 parts (1p1n1u1w) 3201 | -6/Proximity Caves | Identified Exp. Signal Interpreter (x4) 3210 | -6/Proximity Caves | Attracted the attention of an 0b10 outpost 3215 | -6/Proximity Caves | Discovered new exit (range 11) 3218 | -6/Proximity Caves | Learned Factory interactive machine intel 3219 | -6/Proximity Caves | Identified exit to Factory 3219 | -6/Proximity Caves | Entered Factory 3219 | -6/Factory | Evolved 6 slots: Power x1, Propulsion x2, Utility x3 3219 | -6/Factory | Identified Exp. Targeting Computer 3220 | -6/Factory | Identified exit to Factory 3221 | -6/Factory | Loaded intel: 46 interactive machine locations 3263 | -6/Factory | Discovered exit to Factory (range 12) 3301 | -6/Factory | Build established: Sprinter 3544 | -6/Factory | Self-destructed Last Messages --------------- 03520_ H-66 Slayer destroyed. 03520_ K-01 Serf collects debris. 03521_ Slug penetrates Wall. 03522_ Acquired 50 matter. 03523_ Acquired Hacking Suite. 03524_ Penetrated by Slug. 03524_ Slug penetrates Wall. 03530_ Lgt. Fission Core destroyed. 03530_ Penetrated by Slug. 03530_ Xenon Bombardment Thruster destroyed. 03530_ K-01 Serf suffers critical hit. 03530_ K-01 Serf destroyed. 03533_ Penetrated by Slug. 03533_ Imp. Flight Unit destroyed. 03533_ K-01 Serf destroyed. 03537_ Lgt. Fission Core destroyed. 03538_ Penetrated by Slug. 03540_ Katana follow-up attack on H-66 Slayer. 03541_ Penetrated by Slug. 03541_ Katana destroyed. Map ----- +----------------------------------------------------+ | ???????????????#T """ """ #???????#""" ! / | | ???????????????#" """ """ ###+##???????#""" # | | ???????????????# #????????????# # | | ??????????????## #????????????#""" # | | ??????????????# #????????????#""" # | | ??????????????# #????????????#""" # | | ??????????????# "" #????????????# # | | ??????????????# "" #????????????#+######## | | ??############# "T #????????????# #??????# | | ??#"""""""""""# "" ############??# #??????# | | ### """"T"""" # "" ## ??# #????### | | ## ?# #????# | | # "" ## ?# ###### | | # ! "" ## # | | #"" """"""" """ ## # | | #"" """"""" """ p## + | | #G """"""" """ ## # | | #"" """"""" ## # | | #"" ## ?##### ## | | # * #### ## ?????# ## | | # = #??# ## ??????#/#### | | # ###########+##### ## ??????# | | #???????? ?+ u ###########?#+#???# | | ###/###?????? ## #???????????# #???# | | ? ????????# """"" ###R #???????????# #???# | | ? ?????????# """"" #?# @############# ##### | | "??????????# """ #?#h *! =!!!!%=*%= | | ???????????# ! #?###################### | | ???????????# #??????????????????????# | | ???????????# #??????????????????????# | | ???????????##########???????????????????????###### | | | | | | | | | | | | | | | | | | | | | | | | | | | | | | | | | | | | | | | +----------------------------------------------------+ Best States ------------- Heat Dissipation 38 Energy Generation 31 Energy Capacity 275 Matter Stores 300 Matter Capacity 300 Sight Range 24 Robot Scan Range 30 Terrain Scan Density 10 Additional Mass Support 12 Base Temperature (-) 150 Armor Coverage 300 Evasion (%) 64 Targeting Accuracy 12 Recoil Reduction 1 Offensive Hacking 16 Item Schematics ----------------- Battle Cannon | -7/Zion | Free Enh. Flamer | -7/Zion | Free Robot Schematics ------------------ None Fabricated ------------ Nothing Alien Tech Used ----------------- None Achievements -------------- None Challenges ------------ None Game ------ Seed PoweredAssemblyElectrolaser Manual? 0 Play Time 00:26:44 Cumulative 168.5 hours Start 2021.04.24 @ 16:04:43 End 2021.04.24 @ 19:18:11 Sessions 3 Manual Loads 0 Difficulty Rogue Special Mode None Game No. 352 Rogue 199 Adventurer 148 Explorer 5 Win Type - Total 3 Types 3/0/0/0/0/0/0/0/0 Lore% 69 Gallery% 79 Achievement% 58 Wizard Run 0 Options --------- ASCII 0 Keyboard 0 Movement Numpad Keybinds 0 Fullscreen 1 Font 18/CogNarrow Map View 76x50 Tactical HUD 1 Map Filters NONE Filters NONE Steam 1 RUN: 4dfedfc6-7691-4dd9-bd96-11a441df294b